fUSD/lending_fUSD_20250826
["ID","MTS","AMOUNT","RATE_DAILY","PERIOD"]
[381491717,1756230813191,-1530.59,0.00029863,5]
[381491718,1756230813201,-482.83,0.00029863,5]
[381491719,1756230813212,-490.23,0.00029863,5]
[381491720,1756230813223,-400.0,0.00029863,5]
[381491721,1756230813233,-400.0,0.00029863,5]
[381491722,1756230813244,-445.31,0.00029863,5]
[381491723,1756230813254,-1341.96,0.00029863,5]
[381491724,1756230813264,-844.87,0.00029863,5]
[381491725,1756230813274,-613.14,0.00029863,5]
[381491726,1756230813284,-428.43931286,0.00029863,5]
[381491727,1756230813294,-400.0,0.00029863,5]
[381491728,1756230813304,-746.97,0.00029863,5]
[381491729,1756230813316,-526.43,0.00029863,5]
[381491730,1756230813326,-1160.1,0.00029863,5]
[381491731,1756230813336,-393.3694084,0.00029863,5]
[381491732,1756230813346,-807.88,0.00029863,5]
[381491733,1756230813357,-1586.91,0.00029863,5]
[381491734,1756230813367,-1509.82,0.00029863,5]
[381491735,1756230813378,-642.17,0.00029863,5]
[381491736,1756230813389,-400.0,0.00029863,5]
[381491737,1756230813399,-721.04,0.00029863,5]
[381491738,1756230813410,-507.72,0.00029863,5]
[381491739,1756230813420,-565.12,0.00029863,5]
[381491740,1756230813430,-682.86,0.00029863,5]
[381491741,1756230813440,-400.0,0.00029863,5]
[381491742,1756230813451,-400.0,0.00029863,5]
[381491743,1756230813461,-793.12,0.00029863,5]
[381491744,1756230813472,-507.45,0.00029863,5]
[381491745,1756230813483,-670.75,0.00029863,5]
[381491746,1756230813493,-722.78,0.00029863,5]
[381491747,1756230813503,-1421.41,0.00029863,5]
[381491748,1756230813513,-685.96,0.00029863,5]
[381491749,1756230813523,-1219.97,0.00029863,5]
[381491750,1756230813532,-1393.79,0.00029863,5]
[381491751,1756230813542,-944.91,0.00029863,5]
[381491752,1756230813553,-400.0,0.00029863,5]
[381491753,1756230813563,-400.0,0.00029863,5]
[381491754,1756230813574,-616.04,0.00029863,5]
[381491755,1756230813583,-400.0,0.00029863,5]
[381491756,1756230813593,-400.0,0.00029863,5]
[381491757,1756230813603,-400.0,0.00029863,5]
[381491758,1756230813613,-455.61028874,0.00029863,5]
[381491759,1756230813624,-744.71,0.00029863,5]
[381491760,1756230813634,-683.79,0.00029863,5]
[381491761,1756230813645,-496.42,0.00029863,5]
[381491762,1756230813655,-400.0,0.00029863,5]
[381491763,1756230813665,-400.0,0.00029863,5]
[381491764,1756230813675,-1520.2,0.00029863,5]
[381491765,1756230813686,-870.39,0.00029863,5]
[381491766,1756230813698,-759.54,0.00029863,5]
[381491767,1756230813708,-579.76,0.00029863,5]
[381491768,1756230813719,-2000.0,0.00029863,30]
[381491769,1756230813730,-513.44,0.00029863,5]
[381491770,1756230813740,-1483.54,0.00029863,5]
[381491771,1756230813751,-1173.63,0.00029863,5]
[381491772,1756230813762,-400.0,0.00029863,5]
[381491773,1756230813772,-646.83,0.00029863,5]
[381491774,1756230813782,-781.98,0.00029863,5]
[381491775,1756230813792,-400.0,0.00029863,5]
[381491776,1756230813802,-483.54,0.00029863,5]
[381491777,1756230813813,-400.0,0.00029863,5]
[381491778,1756230813824,-465.8,0.00029863,5]
[381491779,1756230813834,-889.4,0.00029863,5]
[381491780,1756230813845,-779.46,0.00029863,5]
[381491781,1756230813856,-511.6,0.00029863,5]
[381491782,1756230813866,-473.06,0.00029863,5]
[381491783,1756230813876,-491.1,0.00029863,5]
[381491784,1756230813888,-508.66,0.00029863,5]
[381491785,1756230813898,-531.34,0.00029863,5]
[381491786,1756230813908,-400.0,0.00029863,5]
[381491787,1756230813919,-696.35,0.00029863,5]
[381491788,1756230813929,-400.0,0.00029863,5]
[381491789,1756230813940,-801.56,0.00029863,5]
[381491790,1756230813950,-400.0,0.00029863,5]
[381491791,1756230813960,-400.0,0.00029863,5]
[381491792,1756230813970,-400.0,0.00029863,5]
[381491793,1756230813981,-1420.8,0.00029863,5]
[381491794,1756230813991,-771.21,0.00029863,5]
[381491795,1756230814002,-489.59,0.00029863,5]
[381491796,1756230814012,-755.04,0.00029863,5]
[381491797,1756230814023,-400.0,0.00029863,5]
[381491798,1756230814033,-1769.58,0.00029863,5]
[381491799,1756230814045,-400.0,0.00029863,5]
[381491800,1756230814056,-681.58,0.00029863,5]
[381491801,1756230814066,-606.73,0.00029863,5]
[381491802,1756230814076,-606.73,0.00029863,5]
[381491803,1756230814087,-821.91,0.00029863,5]
[381491804,1756230814098,-837.01,0.00029863,5]
[381491805,1756230814109,-1166.43,0.00029863,5]
[381491806,1756230814119,-400.0,0.00029863,5]
[381491807,1756230814130,-400.0,0.00029863,5]
[381491808,1756230814140,-799.6,0.00029863,5]
[381491809,1756230814150,-400.0,0.00029863,5]
[381491810,1756230814160,-1010.62,0.00029863,5]
[381491811,1756230814171,-690.36,0.00029863,5]
[381491812,1756230814181,-400.0,0.00029863,5]
[381491813,1756230814192,-400.0,0.00029863,5]
[381491814,1756230814202,-637.61,0.00029863,5]
[381491815,1756230814331,-1281.24,0.00029863,5]
[381491816,1756230814341,-1590.4,0.00029863,5]
[381491817,1756230814351,-1064.68,0.00029863,5]
[381491818,1756230814361,-1271.37,0.00029863,5]
[381491819,1756230814371,-885.76,0.00029863,5]
[381491820,1756230814381,-491.41,0.00029863,5]
[381491821,1756230814390,-1493.75,0.00029863,5]
[381491822,1756230814400,-1336.69,0.00029863,5]
[381491823,1756230814409,-967.08,0.00029863,5]
[381491824,1756230814419,-408.42,0.00029863,5]
[381491825,1756230814429,-418.99,0.00029863,5]
[381491826,1756230814439,-917.22,0.00029863,5]
[381491827,1756230814448,-531.19,0.00029863,5]
[381491828,1756230814458,-1433.07,0.00029863,5]
[381491829,1756230814468,-570.95,0.00029863,5]
[381491830,1756230814478,-903.82,0.00029863,5]
[381491831,1756230814487,-1558.37,0.00029863,5]
[381491832,1756230814497,-550.9,0.00029863,5]
[381491833,1756230814507,-400.0,0.00029863,5]
[381491834,1756230814516,-431.66,0.00029863,5]
[381491835,1756230814526,-664.06,0.00029863,5]
[381491836,1756230814535,-558.64,0.00029863,5]
[381491837,1756230814545,-609.04,0.00029863,5]
[381491838,1756230814555,-774.95,0.00029863,5]
[381491839,1756230814564,-502.72,0.00029863,5]
[381491840,1756230814573,-839.6,0.00029863,5]
[381491841,1756230814583,-697.46,0.00029863,5]
[381491842,1756230814593,-968.44,0.00029863,5]
[381491843,1756230814603,-1276.22,0.00029863,5]
[381491844,1756230814612,-1172.64,0.00029863,5]
[381491845,1756230814621,-1114.22,0.00029863,5]
[381491846,1756230814631,-571.99,0.00029863,5]
[381491847,1756230814640,-400.0,0.00029863,5]
[381491848,1756230814649,-688.1,0.00029863,5]
[381491849,1756230814659,-509.97,0.00029863,5]
[381491850,1756230814668,-580.72,0.00029863,5]
[381491851,1756230814677,-640.51,0.00029863,5]
[381491852,1756230814688,-403.41,0.00029863,5]
[381491853,1756230814699,-821.79,0.00029863,5]
[381491854,1756230814709,-400.0,0.00029863,5]
[381491855,1756230814718,-400.0,0.00029863,5]
[381491856,1756230814728,-1039.88,0.00029863,5]
[381491857,1756230814738,-839.24,0.00029863,5]
[381491858,1756230814748,-837.82,0.00029863,5]
[381491859,1756230814759,-417.78,0.00029863,5]
[381491860,1756230814769,-400.0,0.00029863,5]
[381491861,1756230814779,-400.0,0.00029863,5]
[381491862,1756230814788,-400.0,0.00029863,5]
[381491863,1756230814797,-1270.77,0.00029863,5]
[381491864,1756230814807,-400.0,0.00029863,5]
[381491865,1756230814816,-400.0,0.00029863,5]
[381491866,1756230814826,-400.0,0.00029863,5]
[381491867,1756230814836,-895.98,0.00029863,5]
[381491868,1756230814845,-502.08,0.00029863,5]
[381491869,1756230814855,-598.04,0.00029863,5]
[381491870,1756230814865,-400.0,0.00029863,5]
[381491871,1756230814874,-865.23,0.00029863,5]
[381491872,1756230814885,-400.0,0.00029863,5]
[381491873,1756230814894,-518.54,0.00029863,5]
[381491874,1756230814904,-848.23,0.00029863,5]
[381491875,1756230814914,-422.68,0.00029863,5]
[381491876,1756230814924,-522.21,0.00029863,5]
[381491877,1756230814933,-528.98,0.00029863,5]
[381491878,1756230814942,-728.84,0.00029863,5]
[381491879,1756230814952,-963.39,0.00029863,5]
[381491880,1756230814961,-400.0,0.00029863,5]
[381491881,1756230814971,-618.88,0.00029863,5]
[381491882,1756230814980,-602.44392,0.00029863,5]
[381491883,1756230814990,-957.51,0.00029863,5]
[381491884,1756230814999,-461.75,0.00029863,5]
[381491885,1756230815009,-594.47,0.00029863,5]
[381491886,1756230815019,-1567.09,0.00029863,5]
[381491887,1756230815029,-400.0,0.00029863,5]
[381491888,1756230815039,-400.0,0.00029863,5]
[381491889,1756230815049,-503.53,0.00029863,5]
[381491890,1756230815058,-513.30250618,0.00029863,5]
[381491891,1756230815067,-1089.76,0.00029863,5]
[381491892,1756230815077,-1276.92,0.00029863,5]
[381491893,1756230815086,-674.18,0.00029863,5]
[381491894,1756230815096,-1533.69,0.00029863,5]
[381491895,1756230815105,-817.0,0.00029863,5]
[381491896,1756230815114,-400.0,0.00029863,5]
[381491897,1756230815124,-400.0,0.00029863,5]
[381491898,1756230815133,-676.42,0.00029863,5]
[381491899,1756230815143,-400.0,0.00029863,5]
[381491900,1756230815153,-1531.09,0.00029863,5]
[381491901,1756230815162,-1459.11,0.00029863,5]
[381491902,1756230815172,-622.731684,0.00029863,5]
[381491903,1756230815181,-558.77,0.00029863,5]
[381491904,1756230815190,-400.0,0.00029863,5]
[381491905,1756230815200,-627.47,0.00029863,5]
[381491906,1756230815209,-400.0,0.00029863,5]
[381491907,1756230815218,-579.77,0.00029863,5]
[381491908,1756230815228,-1440.73,0.00029863,5]
[381491909,1756230815238,-400.0,0.00029863,5]
[381491910,1756230815248,-1242.42,0.00029863,5]
[381491911,1756230815257,-400.0,0.00029863,5]
[381491912,1756230815266,-1203.37,0.00029863,5]
[381491913,1756230815276,-746.88,0.00029863,5]
[381491914,1756230815285,-400.0,0.00029863,5]
[381491915,1756230815294,-400.0,0.00029863,5]
[381491916,1756230815304,-1223.38,0.00029863,5]
[381491917,1756230815315,-1148.42,0.00029863,5]
[381491918,1756230815325,-1932.27,0.00029863,5]
[381491919,1756230815335,-771.37,0.00029863,5]
[381491920,1756230815345,-400.0,0.00029863,5]
[381491921,1756230815354,-671.24,0.00029863,5]
[381491922,1756230815364,-669.66,0.00029863,5]
[381491923,1756230815373,-1913.94,0.00029863,5]
[381491924,1756230815383,-947.84,0.00029863,5]
[381491925,1756230815392,-739.95,0.00029863,5]
[381491926,1756230815401,-400.0,0.00029863,5]
[381491927,1756230815411,-517.48224402,0.00029863,5]
[381491928,1756230815421,-400.0,0.00029863,5]
[381491929,1756230815430,-400.0,0.00029863,5]
[381491930,1756230815440,-691.88,0.00029863,5]
[381491931,1756230815450,-939.77,0.00029863,5]
[381491932,1756230815459,-616.51,0.00029863,5]
[381491933,1756230815470,-400.0,0.00029863,5]
[381491934,1756230815480,-641.49,0.00029863,5]
[381491935,1756230815490,-400.0,0.00029863,5]
[381491936,1756230815500,-1152.08,0.00029863,5]
[381491937,1756230815510,-400.0,0.00029863,5]
[381491938,1756230815519,-638.75,0.00029863,5]
[381491939,1756230815529,-559.5,0.00029863,5]
[381491940,1756230815539,-421.67,0.00029863,5]
[381491941,1756230815548,-1044.69,0.00029863,5]
[381491942,1756230815557,-599.16,0.00029863,5]
[381491943,1756230815567,-605.74,0.00029863,5]
[381491944,1756230815576,-400.0,0.00029863,5]
[381491945,1756230815585,-838.66,0.00029863,5]
[381491946,1756230815595,-887.39,0.00029863,5]
[381491947,1756230815605,-655.13,0.00029863,5]
[381491948,1756230815614,-941.57,0.00029863,5]
[381491949,1756230815623,-499.66,0.00029863,5]
[381491950,1756230815633,-471.57,0.00029863,5]
[381491951,1756230815642,-1079.39,0.00029863,5]
[381491952,1756230815652,-400.0,0.00029863,5]
[381491953,1756230815661,-1594.17,0.00029863,5]
[381491954,1756230815670,-1159.56,0.00029863,5]
[381491955,1756230815679,-890.980882,0.00029863,5]
[381491956,1756230815689,-892.37,0.00029863,5]
[381491957,1756230815699,-773.23,0.00029863,5]
[381491958,1756230815708,-1157.25,0.00029863,5]
[381491959,1756230815717,-686.12,0.00029863,5]
[381491960,1756230815726,-1000.25,0.00029863,5]
[381491961,1756230815735,-1270.92,0.00029863,5]
[381491962,1756230815745,-641.35,0.00029863,5]
[381491963,1756230815755,-400.0,0.00029863,5]
[381491964,1756230815767,-547.19,0.00029863,5]
[381491965,1756230815776,-1790.82,0.00029863,5]
[381491966,1756230815786,-1052.08,0.00029863,5]
[381491967,1756230815796,-400.0,0.00029863,5]
[381491968,1756230815806,-554.83,0.00029863,5]
[381491969,1756230815816,-438.05,0.00029863,5]
[381491970,1756230815826,-400.0,0.00029863,5]
[381491971,1756230815835,-1943.28,0.00029863,5]
[381491972,1756230815846,-746.03,0.00029863,5]
[381491973,1756230815856,-400.0,0.00029863,5]
[381491974,1756230815866,-400.0,0.00029863,5]
[381491975,1756230815876,-518.13,0.00029863,5]
[381491976,1756230815886,-340.0,0.00029863,5]
[381491977,1756230815895,-785.98,0.00029863,5]
[381491978,1756230815906,-993.89,0.00029863,5]
[381491979,1756230815916,-818.48,0.00029863,5]
[381491980,1756230815926,-400.0,0.00029863,5]
[381491981,1756230815935,-1104.44,0.00029863,5]
[381491982,1756230815944,-1147.4,0.00029863,5]
[381491983,1756230815954,-400.0,0.00029863,5]
[381491984,1756230815963,-1314.35,0.00029863,5]
[381491985,1756230815972,-494.04,0.00029863,5]
[381491986,1756230815981,-400.0,0.00029863,5]
[381491987,1756230815990,-762.17,0.00029863,5]
[381491988,1756230816000,-1207.12,0.00029863,5]
[381491989,1756230816010,-400.0,0.00029863,5]
[381491990,1756230816019,-803.64,0.00029863,5]
[381491991,1756230816029,-340.0,0.00029863,5]
[381491992,1756230816039,-400.0,0.00029863,5]
[381491993,1756230816048,-479.74,0.00029863,5]
[381491994,1756230816059,-1365.31,0.00029863,5]
[381491995,1756230816068,-577.41,0.00029863,5]
[381491996,1756230816078,-796.06,0.00029863,5]
[381491997,1756230816087,-596.98,0.00029863,5]
[381491998,1756230816097,-649.76,0.00029863,5]
[381491999,1756230816106,-400.0,0.00029863,5]
[381492000,1756230816116,-865.97,0.00029863,5]
[381492001,1756230816126,-1461.95,0.00029863,5]
[381492002,1756230816135,-679.44,0.00029863,5]
[381492003,1756230816145,-1811.76,0.00029863,5]
[381492004,1756230816155,-400.0,0.00029863,5]
[381492005,1756230816164,-1319.63,0.00029863,5]
[381492006,1756230816174,-439.96,0.00029863,5]
[381492007,1756230816183,-400.0,0.00029863,5]
[381492008,1756230816193,-1057.17,0.00029863,5]
[381492009,1756230816203,-400.0,0.00029863,5]
[381492010,1756230816213,-400.0,0.00029863,5]
[381492011,1756230816223,-405.4611386,0.00029863,5]
[381492012,1756230816232,-736.79,0.00029863,5]
[381492013,1756230816242,-747.22,0.00029863,5]
[381492014,1756230816251,-1451.65,0.00029863,5]
[381492015,1756230816262,-1376.31,0.00029863,5]
[381492016,1756230816271,-1514.02,0.00029863,5]
[381492017,1756230816281,-449.86,0.00029863,5]
[381492018,1756230816290,-1074.86,0.00029863,5]
[381492019,1756230816299,-794.3,0.00029863,5]
[381492020,1756230816309,-769.79,0.00029863,5]
[381492021,1756230816319,-150.0,0.00029863,5]
[381492022,1756230816328,-1162.07,0.00029863,5]
[381492023,1756230816338,-934.37,0.00029863,5]
[381492024,1756230816347,-1986.93,0.00029863,5]
[381492025,1756230816356,-708.52,0.00029863,5]
[381492026,1756230816366,-1255.96,0.00029863,5]
[381492027,1756230816375,-1235.73,0.00029863,5]
[381492028,1756230816385,-1339.03,0.00029863,5]
[381492029,1756230816394,-400.0,0.00029863,5]
[381492030,1756230816403,-400.0,0.00029863,5]
[381492031,1756230816412,-826.32,0.00029863,5]
[381492032,1756230816421,-817.2,0.00029863,5]
[381492033,1756230816430,-1322.4,0.00029863,5]
[381492034,1756230816439,-621.44,0.00029863,5]
[381492035,1756230816449,-1563.34,0.00029863,5]
[381492036,1756230816458,-400.0,0.00029863,5]
[381492037,1756230816467,-1226.73,0.00029863,5]
[381492038,1756230816477,-567.37,0.00029863,5]
[381492039,1756230816486,-469.42,0.00029863,5]
[381492040,1756230816495,-400.0,0.00029863,5]
[381492041,1756230816505,-1033.23,0.00029863,5]
[381492042,1756230816514,-583.42,0.00029863,5]
[381492043,1756230816523,-400.0,0.00029863,5]
[381492044,1756230816532,-1617.06,0.00029863,5]
[381492045,1756230816541,-475.7366708,0.00029863,5]
[381492046,1756230816551,-496.78,0.00029863,5]
[381492047,1756230816560,-751.23,0.00029863,5]
[381492048,1756230816570,-571.51,0.00029863,5]
[381492049,1756230816579,-740.82,0.00029863,5]
[381492050,1756230816589,-1057.52,0.00029863,5]
[381492051,1756230816599,-434.35,0.00029863,5]
[381492052,1756230816609,-752.52,0.00029863,5]
[381492053,1756230816618,-1288.56,0.00029863,5]
[381492054,1756230816628,-1749.23,0.00029863,5]
[381492055,1756230816637,-400.0,0.00029863,5]
[381492056,1756230816647,-1512.96,0.00029863,5]
[381492057,1756230816656,-1076.61,0.00029863,5]
[381492058,1756230816666,-402.17782984,0.00029863,5]
[381492059,1756230816675,-4628.51,0.00029863,5]
[381492060,1756230816685,-485.34,0.00029863,5]
[381492061,1756230816697,-612.79,0.00029863,5]
[381492062,1756230816706,-546.54,0.00029863,5]
[381492063,1756230816715,-1309.38,0.00029863,5]
[381492064,1756230816725,-875.95,0.00029863,5]
[381492065,1756230816736,-400.0,0.00029863,5]
[381492066,1756230816746,-1567.59,0.00029863,5]
[381492067,1756230816755,-2458.03,0.00029863,5]
[381492068,1756230816765,-400.0,0.00029863,5]
[381492069,1756230816777,-431.25,0.00029863,5]
[381492070,1756230816786,-1637.37,0.00029863,5]
[381492071,1756230816795,-875.76,0.00029863,5]
[381492072,1756230816805,-805.91,0.00029863,5]
[381492073,1756230816816,-1335.44,0.00029863,5]
[381492074,1756230816826,-813.45,0.00029863,5]
[381492075,1756230816836,-458.20620799,0.00029863,5]
[381492076,1756230816845,-776.37,0.00029863,5]
[381492077,1756230816854,-440.79,0.00029863,5]
[381492078,1756230816864,-400.0,0.00029863,5]
[381492079,1756230816874,-1213.81,0.00029863,5]
[381492080,1756230816883,-686.49,0.00029863,5]
[381492081,1756230816893,-400.0,0.00029863,5]
[381492082,1756230816903,-713.94,0.00029863,5]
[381492083,1756230816912,-862.64,0.00029863,5]
[381492084,1756230816921,-922.13,0.00029863,5]
[381492085,1756230816931,-842.8,0.00029863,5]
[381492086,1756230816942,-937.37,0.00029863,5]
[381492087,1756230816951,-400.0,0.00029863,5]
[381492088,1756230816961,-1109.71,0.00029863,5]
[381492089,1756230816971,-400.0,0.00029863,5]
[381492090,1756230816980,-400.0,0.00029863,5]
[381492091,1756230816990,-400.0,0.00029863,5]
[381492092,1756230816999,-400.0,0.00029863,5]
[381492093,1756230817009,-537.55,0.00029863,5]
[381492094,1756230817018,-400.0,0.00029863,5]
[381492095,1756230817027,-996.63,0.00029863,5]
[381492096,1756230817036,-1260.94,0.00029863,5]
[381492097,1756230817045,-400.0,0.00029863,5]
[381492098,1756230817054,-1760.66,0.00029863,5]
[381492099,1756230817063,-410.02,0.00029863,5]
[381492100,1756230817074,-400.0,0.00029863,5]
[381492101,1756230817083,-211.53103291,0.00029863,5]
[381492102,1756230817092,-980.95,0.00029863,5]
[381492103,1756230817101,-400.0,0.00029863,5]
[381492104,1756230817110,-400.0,0.00029863,5]
[381492105,1756230817120,-400.0,0.00029863,5]
[381492106,1756230817129,-886.79,0.00029863,5]
[381492107,1756230817138,-400.0,0.00029863,5]
[381492108,1756230817147,-400.0,0.00029863,5]
[381492109,1756230817156,-1351.73,0.00029863,5]
[381492110,1756230817166,-400.0,0.00029863,5]
[381492111,1756230817176,-400.0,0.00029863,5]
[381492112,1756230817185,-457.01,0.00029863,5]
[381492113,1756230817194,-400.0,0.00029863,5]
[381492114,1756230817204,-1161.18,0.00029863,5]
[381492115,1756230817214,-933.82,0.00029863,5]
[381492116,1756230817224,-400.0,0.00029863,5]
[381492117,1756230817244,-504.23,0.00029863,5]
[381492118,1756230817253,-763.04,0.00029863,5]
[381492119,1756230817263,-626.61,0.00029863,5]
[381492120,1756230817273,-1778.67,0.00029863,5]
[381492121,1756230817282,-1427.19,0.00029863,5]
[381492122,1756230817293,-595.35,0.00029863,5]
[381492123,1756230817303,-400.0,0.00029863,5]
[381492124,1756230817314,-1212.24,0.00029863,5]
[381492125,1756230817324,-659.0,0.00029863,5]
[381492126,1756230817334,-400.0,0.00029863,2]
[381492127,1756230817344,-1136.12,0.00029863,5]
[381492128,1756230817356,-400.0,0.00029863,5]
[381492129,1756230817377,-400.0,0.00029863,5]
[381492130,1756230817391,-1388.02,0.00029863,5]
[381492131,1756230817402,-400.0,0.00029863,5]
[381492132,1756230817411,-851.42,0.00029863,5]
[381492133,1756230817421,-790.48,0.00029863,5]
[381492134,1756230817431,-424.81,0.00029863,5]
[381492135,1756230817441,-1031.7,0.00029863,5]
[381492136,1756230817451,-978.35,0.00029863,5]
[381492137,1756230817461,-400.0,0.00029863,5]
[381492138,1756230817471,-400.0,0.00029863,5]
[381492139,1756230817480,-835.03,0.00029863,5]
[381492140,1756230817491,-400.0,0.00029863,5]
[381492141,1756230817500,-1052.63,0.00029863,5]
[381492142,1756230817511,-1326.59,0.00029863,5]
[381492143,1756230817521,-463.9,0.00029863,5]
[381492144,1756230817531,-686.76,0.00029863,5]
[381492145,1756230817541,-441.77,0.00029863,5]
[381492146,1756230817550,-1026.11,0.00029863,5]
[381492147,1756230817560,-400.0,0.00029863,5]
[381492148,1756230817570,-361.79607838,0.00029863,5]
[381492149,1756230817580,-510.24,0.00029863,5]
[381492150,1756230817590,-400.0,0.00029863,5]
[381492151,1756230817599,-400.0,0.00029863,5]
[381492152,1756230817610,-244.55281942,0.00029863,5]
[381492153,1756230817620,-1032.18,0.00029863,5]
[381492154,1756230817629,-1025.85,0.00029863,5]
[381492155,1756230817640,-400.0,0.00029863,5]
[381492156,1756230817650,-682.58,0.00029863,5]
[381492157,1756230817659,-682.08,0.00029863,5]
[381492158,1756230817670,-400.0,0.00029863,5]
[381492159,1756230817679,-611.11,0.00029863,5]
[381492160,1756230817692,-507.58,0.00029863,5]
[381492161,1756230817702,-707.77,0.00029863,5]
[381492162,1756230817712,-1988.35,0.00029863,5]
[381492163,1756230817722,-671.23,0.00029863,5]
[381492164,1756230817733,-400.0,0.00029863,5]
[381492165,1756230817743,-400.0,0.00029863,5]
[381492166,1756230817753,-414.02,0.00029863,5]
[381492167,1756230817762,-1108.22,0.00029863,5]
[381492168,1756230817772,-620.36,0.00029863,5]
[381492169,1756230817782,-674.7,0.00029863,5]
[381492170,1756230817792,-1696.44,0.00029863,5]
[381492171,1756230817801,-400.0,0.00029863,5]
[381492172,1756230817812,-1262.19,0.00029863,5]
[381492173,1756230817822,-242.21639009,0.00029863,5]
[381492174,1756230817832,-400.0,0.00029863,5]
[381492175,1756230817841,-838.64,0.00029863,5]
[381492176,1756230817852,-1451.77,0.00029863,5]
[381492177,1756230817863,-400.0,0.00029863,5]
[381492178,1756230817873,-1320.14,0.00029863,5]
[381492179,1756230817884,-1171.83,0.00029863,5]
[381492180,1756230817894,-400.0,0.00029863,5]
[381492181,1756230817904,-1229.77,0.00029863,5]
[381492182,1756230817913,-1055.35,0.00029863,5]
[381492183,1756230817923,-424.49864171,0.00029863,5]
[381492184,1756230817932,-400.0,0.00029863,5]
[381492185,1756230817942,-490.51,0.00029863,5]
[381492186,1756230817952,-451.3,0.00029863,5]
[381492187,1756230817962,-654.35,0.00029863,5]
[381492188,1756230817974,-1305.09,0.00029863,5]
[381492189,1756230817984,-715.4,0.00029863,5]
[381492190,1756230817993,-1150.93,0.00029863,5]
[381492191,1756230818005,-486.06,0.00029863,5]
[381492192,1756230818014,-1190.31,0.00029863,5]
[381492193,1756230818024,-400.0,0.00029863,5]
[381492194,1756230818034,-1053.64,0.00029863,5]
[381492195,1756230818044,-1314.02,0.00029863,5]
[381492196,1756230818053,-1447.76,0.00029863,5]
[381492197,1756230818064,-737.44,0.00029863,5]
[381492198,1756230818075,-710.08,0.00029863,5]
[381492199,1756230818085,-867.06,0.00029863,5]
[381492200,1756230818095,-2794.66,0.00029863,5]
[381492201,1756230818104,-831.22,0.00029863,5]
[381492202,1756230818114,-522.78,0.00029863,5]
[381492203,1756230818123,-1002.86,0.00029863,5]
[381492204,1756230818133,-518.85,0.00029863,5]
[381492205,1756230818143,-966.97,0.00029863,5]
[381492206,1756230818153,-415.74,0.00029863,5]
[381492207,1756230818163,-728.92,0.00029863,5]
[381492208,1756230818173,-777.45,0.00029863,5]
[381492209,1756230818183,-1382.78,0.00029863,5]
[381492210,1756230818193,-1380.42,0.00029863,5]
[381492211,1756230818203,-274.96172208,0.00029863,5]
[381492212,1756230818213,-1552.27,0.00029863,5]
[381492213,1756230818223,-878.37,0.00029863,5]
[381492214,1756230818233,-411.47,0.00029863,5]
[381492215,1756230818243,-400.0,0.00029863,5]
[381492216,1756230818253,-506.44,0.00029863,5]